bitfinex-derivatives/quotes_SOLF0:USTF0_20250903
["timestamp","ask_amount","ask_price","bid_price","bid_amount"]
[1756930981540,74.0,209.66,209.59,3.12619934]
[1756930981745,74.0,209.66,209.6,6.55]
[1756930981943,7.55,209.71,209.6,6.55]
[1756930982943,74.0,209.72,209.57,6.55]
[1756930982944,7.55,209.69,209.57,6.55]
[1756930987949,7.55,209.67,209.57,6.55]
[1756930988246,7.55,209.65,209.57,6.55]
[1756930990450,7.55,209.65,209.58,6.55]
[1756930991248,74.0,209.66,209.6,6.55]
[1756930993853,7.55,209.68,209.6,6.55]
[1756930996558,81.84,209.71,209.6,10.5485469]
[1756930996752,81.84,209.71,209.6,10.5785469]
[1756930997061,81.84,209.71,209.61,6.58]
[1756930997361,81.84,209.71,209.63,6.58]
[1756931002560,81.84,209.71,209.6,13.70474624]
[1756931002858,7.84,209.7,209.6,13.70474624]
[1756931003054,74.0,209.71,209.6,13.70474624]
[1756931003653,7.84,209.7,209.6,9.70619934]
[1756931008766,7.84,209.7,209.61,6.58]
[1756931011467,9.84123696,209.7,209.62,2.00123696]
[1756931014666,9.84123696,209.7,209.63,6.58]
[1756931015269,7.84,209.7,209.63,6.58]
[1756931015466,7.84,209.7,209.64,2.00123696]
[1756931027175,7.27,209.75,209.68,2.00123696]
[1756931028079,7.27,209.75,209.7,8.55123696]
[1756931028280,190.4,209.76,209.7,8.55123696]
[1756931028877,7.27,209.75,209.7,8.55123696]
[1756931029287,190.4,209.76,209.7,8.55123696]
[1756931029776,197.67,209.76,209.7,8.55123696]
[1756931029976,7.27,209.75,209.72,2.00123696]
[1756931030178,7.27,209.75,209.72,8.55123696]
[1756931030574,74.0,209.76,209.72,8.55123696]
[1756931031181,7.27,209.75,209.72,8.55123696]
[1756931031384,74.0,209.76,209.72,8.55123696]
[1756931031880,7.27,209.75,209.66,3.9985469]
[1756931032086,7.27,209.69,209.62,8.55123696]
[1756931032784,3.75667643,209.68,209.62,8.55123696]
[1756931032979,11.02667643,209.67,209.62,2.00123696]
[1756931033179,3.75667643,209.66,209.63,6.55]
[1756931033379,3.75667643,209.65,209.63,6.55]
[1756931033575,7.27,209.66,209.63,6.55]
[1756931033982,7.27,209.69,209.59,4.00765483]
[1756931034188,7.27,209.66,209.6,2.00123696]
[1756931034582,7.27,209.66,209.58,12.55889179]
[1756931035087,2.00123696,209.65,209.58,12.55889179]
[1756931035388,2.00123696,209.65,209.58,8.55123696]
[1756931035582,7.27,209.66,209.58,8.55123696]
[1756931035782,7.27,209.66,209.62,2.00123696]
[1756931035984,7.27,209.66,209.63,6.55]
[1756931036179,2.00123696,209.69,209.63,6.55]
[1756931037081,2.00123696,209.67,209.6,6.00889179]
[1756931037286,2.00123696,209.67,209.6,2.00123696]
[1756931038888,7.27,209.64,209.58,4.00765483]
[1756931039088,7.27,209.64,209.58,6.00889179]
[1756931039283,7.27,209.64,209.58,2.00123696]
[1756931040593,2.00123696,209.61,209.57,4.00765483]
[1756931040790,9.27123696,209.61,209.55,4.00765483]
[1756931041391,9.27123696,209.61,209.54,12.55889179]
[1756931042694,7.27,209.61,209.54,12.55889179]
[1756931042891,7.27,209.66,209.59,6.55]
[1756931043191,7.27,209.66,209.59,8.55123696]
[1756931043493,7.27,209.66,209.59,2.00123696]
[1756931044098,7.27,209.64,209.58,2.00123696]
[1756931046698,7.27,209.69,209.63,2.00123696]
[1756931047295,74.0,209.7,209.65,2.00123696]
[1756931047500,7.27,209.69,209.65,2.00123696]
[1756931048192,74.0,209.7,209.65,2.00123696]
[1756931048588,7.27,209.69,209.65,2.00123696]
[1756931049196,74.0,209.7,209.65,2.00123696]
[1756931049992,7.27,209.69,209.65,2.00123696]
[1756931050192,7.27,209.69,209.66,6.55]
[1756931050395,7.27,209.69,209.66,2.00123696]
[1756931051800,7.74,209.69,209.66,2.00123696]
[1756931052002,74.0,209.7,209.66,2.00123696]
[1756931052300,7.74,209.69,209.66,2.00123696]
[1756931052699,7.74,209.69,209.66,8.56123696]
[1756931053503,7.74,209.73,209.66,2.00123696]
[1756931054294,2.00123696,209.72,209.66,2.00123696]
[1756931054498,7.74,209.71,209.66,2.00123696]
[1756931055505,7.74,209.71,209.64,2.00123696]
[1756931055696,2.00123696,209.7,209.61,4.00765483]
[1756931055896,7.74,209.69,209.62,2.00123696]
[1756931063608,7.74,209.69,209.6,6.56]
[1756931063907,7.74,209.69,209.62,2.00123696]
[1756931072214,7.74,209.69,209.64,8.56123696]
[1756931072617,2.00123696,209.72,209.64,2.00123696]
[1756931072818,7.74,209.71,209.64,8.56123696]
[1756931073522,7.74,209.71,209.64,6.56]
[1756931083440,7.74,209.71,209.65,6.55]
[1756931084245,74.0,209.74,209.65,6.55]
[1756931084441,74.0,209.74,209.68,6.55]
[1756931084643,7.84,209.75,209.68,6.55]
[1756931103547,7.84,209.75,209.67,3.1262982]
[1756931103548,7.84,209.75,209.65,6.55]
[1756931103752,7.84,209.72,209.62,6.55]
[1756931109455,81.84,209.72,209.62,6.55]
[1756931116460,81.84,209.72,209.59,4.00765483]
[1756931116759,7.81,209.69,209.59,6.56]
[1756931116955,81.81,209.69,209.59,6.56]
[1756931117156,7.81,209.67,209.59,6.56]
[1756931118063,10.9362982,209.67,209.56,4.00765483]
[1756931118357,3.1262982,209.67,209.56,10.56765483]
[1756931118764,7.81,209.66,209.56,10.56765483]
[1756931119361,7.81,209.66,209.57,6.56]
[1756931121466,81.81,209.66,209.57,6.56]
[1756931135584,83.8119441,209.66,209.59,8.5619441]
[1756931137583,81.81,209.66,209.59,8.5619441]
[1756931137983,7.81,209.65,209.62,6.56]
[1756931139187,7.81,209.65,209.61,2.0019441]
[1756931139688,7.81,209.65,209.59,8.5619441]
[1756931141790,7.81,209.65,209.62,6.56]
[1756931141991,74.0,209.66,209.62,6.56]
[1756931142194,7.97,209.65,209.62,6.56]
[1756931147292,7.97,209.67,209.62,6.56]
[1756931147789,2.0019441,209.68,209.62,6.56]
[1756931148294,2.0019441,209.66,209.59,2.0019441]
[1756931148494,7.97,209.65,209.59,2.0019441]
[1756931148689,7.97,209.65,209.58,6.56]
[1756931148894,7.97,209.63,209.58,8.5619441]
[1756931149393,2.0019441,209.64,209.58,8.5619441]
[1756931150086,7.97,209.63,209.58,8.5619441]
[1756931150287,2.0019441,209.64,209.58,8.5619441]
[1756931151394,7.97,209.63,209.58,8.5619441]
[1756931152191,7.97,209.63,209.56,2.0019441]
[1756931153197,7.97,209.63,209.56,8.5619441]
[1756931154199,3.6479414,209.62,209.56,8.5619441]
[1756931154399,7.97,209.6,209.57,6.56]
[1756931154701,7.97,209.6,209.56,2.0019441]
[1756931154702,7.97,209.63,209.55,4.00765483]
[1756931154898,7.97,209.61,209.54,10.56765483]
[1756931155200,3.64822373,209.6,209.54,4.00765483]
[1756931155500,7.97,209.6,209.54,4.00765483]
[1756931156301,7.97,209.6,209.53,8.5619441]
[1756931156302,3.6482019,209.59,209.53,12.56959893]
[1756931156504,7.97,209.6,209.53,12.56959893]
[1756931156802,3.64827442,209.59,209.53,12.56959893]
[1756931157101,7.97,209.6,209.53,12.56959893]
[1756931157292,3.64827442,209.59,209.53,12.56959893]
[1756931157495,7.97,209.6,209.53,12.56959893]
[1756931157695,3.64818748,209.59,209.53,12.56959893]
[1756931157904,7.97,209.6,209.53,12.56959893]
[1756931158104,7.97,209.58,209.53,6.56]
[1756931158297,7.97,209.56,209.53,6.56]
[1756931158497,7.97,209.59,209.53,6.56]
[1756931158698,7.97,209.57,209.53,6.56]
[1756931158895,7.97,209.59,209.53,6.56]
[1756931159094,3.64797284,209.58,209.53,6.56]
[1756931159401,3.64797284,209.57,209.51,6.00959893]
[1756931159600,2.0019441,209.58,209.51,6.00959893]
[1756931159802,11.61759209,209.57,209.51,6.00959893]
[1756931160100,7.97,209.57,209.51,6.00959893]
[1756931161905,2.0019441,209.56,209.51,4.00765483]
[1756931162094,2.0019441,209.56,209.5,4.00765483]
[1756931162296,2.0019441,209.54,209.49,4.00765483]
[1756931162602,7.97,209.53,209.47,10.56765483]
[1756931164309,7.97,209.53,209.47,6.56]
[1756931168808,7.97,209.53,209.48,2.0019441]
[1756931169709,7.97,209.53,209.49,6.56]
[1756931170104,7.97,209.53,209.48,2.0019441]
[1756931170310,7.97,209.53,209.49,6.56]
[1756931171408,7.97,209.53,209.48,2.0019441]
[1756931172211,7.97,209.53,209.49,6.58]
[1756931172411,7.97,209.53,209.48,2.0019441]
[1756931173211,7.97,209.53,209.49,6.58]
[1756931173411,7.27,209.56,209.49,6.58]
[1756931173612,3.76171394,209.55,209.49,6.58]
[1756931173808,7.27,209.56,209.49,6.58]
[1756931174111,7.27,209.54,209.48,8.5819441]
[1756931174911,7.27,209.54,209.48,2.0019441]
[1756931175105,7.27,209.54,209.51,6.58]
[1756931175506,7.27,209.54,209.5,2.0019441]
[1756931175710,8.65,209.57,209.51,6.58]
[1756931177013,8.65,209.57,209.44,5.2969456]
[1756931177014,8.65,209.57,209.52,2.0019441]
[1756931177209,8.65,209.57,209.53,6.58]
[1756931177415,7.27,209.56,209.53,6.58]
[1756931177713,1.38,209.57,209.53,6.58]
[1756931177915,7.27,209.56,209.53,6.58]
[1756931181422,7.27,209.56,209.53,8.5819441]
[1756931183212,1.38,209.57,209.54,6.58]
[1756931183614,7.27,209.56,209.54,6.58]
[1756931192320,7.27,209.56,209.53,2.0019441]
[1756931192624,7.27,209.56,209.51,2.0019441]
[1756931192820,1.38,209.57,209.51,8.5819441]
[1756931193024,7.27,209.55,209.51,8.5819441]
[1756931193226,1.38,209.57,209.51,8.5819441]
[1756931193527,3.79660308,209.56,209.51,8.5819441]
[1756931193724,7.27,209.54,209.51,8.5819441]
[1756931193928,7.27,209.54,209.52,6.58]
[1756931195224,8.65,209.57,209.51,8.5819441]
[1756931195427,3.79877353,209.56,209.52,6.58]
[1756931195622,3.79877353,209.55,209.5,6.58]
[1756931195821,1.38,209.57,209.5,6.58]
[1756931196123,3.79874281,209.56,209.5,6.58]
[1756931196323,3.79874281,209.55,209.5,6.58]
[1756931196524,1.38,209.57,209.5,6.58]
[1756931196725,3.7994737,209.56,209.5,6.58]
[1756931196917,1.38,209.57,209.5,6.58]
[1756931197123,3.79922814,209.56,209.5,6.58]
[1756931197331,3.79996119,209.55,209.49,3.13018784]
[1756931197522,1.38,209.57,209.5,6.58]
[1756931197721,3.79996119,209.56,209.5,6.58]
[1756931197922,1.38,209.57,209.5,6.58]
[1756931198121,3.79989979,209.56,209.5,6.58]
[1756931198322,3.80062863,209.55,209.5,6.58]
[1756931198523,1.38,209.57,209.5,6.58]
[1756931198724,3.80059789,209.56,209.5,6.58]
[1756931198923,1.38,209.57,209.5,6.58]
[1756931199225,3.80059789,209.56,209.5,6.58]
[1756931199431,1.38,209.57,209.52,3.13018784]
[1756931199619,1.38,209.57,209.53,6.58]
[1756931199824,1.38,209.57,209.56,6.58]
[1756931203130,7.27,209.64,209.56,6.58]
[1756931203329,360.94,209.67,209.6,6.58]
[1756931203330,7.64,209.66,209.6,6.58]
[1756931203531,7.64,209.66,209.59,3.13018784]
[1756931206831,7.64,209.66,209.59,9.71018784]
[1756931207930,40.18,209.67,209.59,9.71018784]
[1756931208129,7.64,209.66,209.59,3.13018784]
[1756931209129,40.18,209.67,209.56,9.71018784]
[1756931209628,7.64,209.66,209.56,9.71018784]
[1756931210534,40.18,209.67,209.56,9.71018784]
[1756931210934,7.64,209.66,209.56,9.71018784]
[1756931211332,40.18,209.67,209.56,9.71018784]
[1756931211934,7.64,209.66,209.56,9.71018784]
[1756931212428,40.18,209.67,209.56,9.71018784]
[1756931212636,3.13018784,209.65,209.53,9.71018784]
[1756931213229,7.64,209.64,209.53,9.71018784]
[1756931213837,3.13018784,209.65,209.53,9.71018784]
[1756931214037,7.64,209.64,209.53,9.71018784]
[1756931214237,3.13018784,209.65,209.53,9.71018784]
[1756931214831,7.64,209.64,209.53,9.71018784]
[1756931215139,3.13018784,209.65,209.53,9.71018784]
[1756931215837,7.64,209.64,209.53,9.71018784]
[1756931216338,3.13018784,209.65,209.53,9.71018784]
[1756931216540,7.64,209.64,209.53,9.71018784]
[1756931216740,3.13018784,209.65,209.53,9.71018784]
[1756931216942,7.64,209.64,209.53,9.71018784]
[1756931217343,3.13018784,209.65,209.53,9.71018784]
[1756931217543,7.64,209.64,209.53,9.71018784]
[1756931218041,3.13018784,209.65,209.53,9.71018784]
[1756931218643,7.64,209.64,209.53,9.71018784]
[1756931218844,3.13018784,209.65,209.53,9.71018784]
[1756931219040,7.64,209.64,209.53,9.71018784]
[1756931219244,3.13018784,209.65,209.53,9.71018784]
[1756931219440,7.64,209.64,209.53,9.71018784]
[1756931219641,101.3,209.64,209.54,6.58]
[1756931220247,7.64,209.64,209.54,6.58]
[1756931222050,7.64,209.61,209.54,6.58]
[1756931223845,7.64,209.61,209.48,5.2969456]
[1756931223846,74.0,209.6,209.49,6.58]
[1756931224150,7.64,209.57,209.49,6.58]
[1756931224650,91.76,209.57,209.49,6.58]
[1756931225844,7.64,209.55,209.49,6.58]
[1756931228253,7.64,209.55,209.45,6.58]
[1756931230651,10.77018784,209.55,209.45,6.58]
[1756931234148,74.0,209.54,209.45,6.58]
[1756931234351,7.84,209.53,209.45,6.58]
[1756931234947,98.78,209.53,209.45,6.58]
[1756931236452,7.84,209.53,209.45,6.58]
[1756931243464,7.84,209.62,209.48,6.58]
[1756931243661,7.84,209.6,209.48,6.58]
[1756931244264,53.5,209.6,209.48,6.58]
[1756931245761,7.84,209.6,209.48,6.58]
[1756931245961,56.46,209.6,209.48,6.58]
[1756931248361,7.84,209.6,209.5,3.13018784]
[1756931248561,7.84,209.6,209.51,6.58]
[1756931257473,9.8431335,209.6,209.51,6.58]
[1756931257673,9.8431335,209.6,209.53,2.0031335]
[1756931258372,7.84,209.6,209.54,2.0031335]
[1756931260369,7.84,209.6,209.53,6.58]
[1756931261674,124.18,209.6,209.53,6.58]
[1756931263677,7.52,209.58,209.52,2.0031335]
[1756931263973,116.34,209.6,209.5,8.5631335]
[1756931263974,7.52,209.56,209.5,8.5631335]
[1756931264369,2.0031335,209.55,209.46,6.56]
[1756931264570,7.52,209.54,209.46,8.5631335]
[1756931266076,7.52,209.52,209.46,8.5631335]
[1756931266472,7.52,209.52,209.46,2.0031335]
[1756931266673,7.52,209.52,209.44,2.0031335]
[1756931267279,7.52,209.52,209.44,8.5631335]
[1756931269373,7.52,209.52,209.44,2.0031335]
[1756931269570,7.52,209.5,209.44,8.5631335]
[1756931270275,7.52,209.5,209.44,6.56]
[1756931270478,7.52,209.5,209.44,8.5631335]
[1756931273279,7.52,209.5,209.44,6.56]
[1756931273578,7.52,209.5,209.44,8.5631335]
[1756931277783,7.52,209.5,209.44,6.56]
[1756931278583,7.52,209.48,209.42,8.5631335]
[1756931279886,2.0031335,209.47,209.42,6.56]
[1756931280083,7.52,209.46,209.4,2.0031335]
[1756931285489,7.52,209.47,209.41,6.56]
[1756931287688,7.52,209.47,209.41,8.5631335]
[1756931289890,7.52,209.47,209.41,2.0031335]
[1756931290090,2.0031335,209.48,209.41,2.0031335]
[1756931290091,7.52,209.46,209.43,6.56]
[1756931291393,2.0031335,209.5,209.43,6.56]
[1756931291589,7.52,209.49,209.43,6.56]
[1756931294787,2.0031335,209.48,209.43,6.56]
[1756931295191,7.28,209.47,209.43,6.56]
[1756931295886,7.28,209.51,209.44,6.6]
[1756931296091,83.2831335,209.52,209.46,6.6]
[1756931299398,81.28,209.52,209.46,6.6]
[1756931304702,83.2831335,209.52,209.46,6.6]
[1756931305197,83.2831335,209.52,209.45,2.0031335]
[1756931306800,83.2831335,209.52,209.43,6.6]
[1756931307103,7.28,209.49,209.41,2.0031335]
[1756931307496,2.0031335,209.48,209.41,2.0031335]
[1756931307696,7.28,209.47,209.41,2.0031335]
[1756931314508,123.56,209.47,209.41,2.0031335]
[1756931317515,123.56,209.47,209.41,2.02314321]
[1756931318516,7.28,209.47,209.41,0.02000971]
[1756931318912,86.76,209.47,209.41,0.02000971]
[1756931319215,123.56,209.47,209.41,0.02000971]
[1756931322207,7.87,209.45,209.41,0.02000971]
[1756931322614,7.87,209.43,209.41,0.02000971]
[1756931322916,7.87,209.46,209.41,0.02000971]
[1756931323117,7.87,209.44,209.41,0.02000971]
[1756931323317,7.87,209.46,209.41,0.02000971]
[1756931323519,7.87,209.44,209.41,0.02000971]
[1756931323819,7.87,209.46,209.41,0.02000971]
[1756931324019,3.8133606,209.45,209.41,0.02000971]
[1756931324220,7.87,209.43,209.41,0.02000971]
[1756931324417,7.87,209.46,209.41,0.02000971]
[1756931324720,7.87,209.44,209.41,0.02000971]
[1756931324921,7.87,209.46,209.41,0.02000971]
[1756931325117,7.87,209.44,209.41,0.02000971]
[1756931325418,116.28,209.46,209.41,0.02000971]
[1756931325612,7.87,209.44,209.41,0.02000971]
[1756931325817,7.87,209.45,209.41,0.02000971]
[1756931326013,3.81316351,209.44,209.41,0.02000971]
[1756931326218,7.87,209.42,209.41,0.02000971]
[1756931333123,7.87,209.49,209.41,0.02000971]
[1756931333320,7.87,209.47,209.41,0.02000971]
[1756931333625,3.81148255,209.46,209.41,6.59000971]
[1756931333827,7.87,209.44,209.41,6.59000971]
[1756931335426,7.87,209.47,209.41,6.59000971]
[1756931335628,3.8217543,209.46,209.41,6.59000971]
[1756931335929,7.87,209.44,209.41,6.59000971]
[1756931336122,116.26,209.48,209.41,6.59000971]
[1756931336326,15.39332425,209.47,209.41,6.59000971]
[1756931336526,3.82172526,209.46,209.41,6.59000971]
[1756931336723,7.87,209.44,209.41,6.59000971]
[1756931337129,7.87,209.47,209.41,6.59000971]
[1756931337329,3.82169672,209.46,209.41,6.59000971]
[1756931337523,116.26,209.48,209.41,6.59000971]
[1756931337524,7.87,209.44,209.41,6.59000971]
[1756931337725,7.87,209.47,209.41,6.59000971]
[1756931337925,3.82169672,209.46,209.41,6.59000971]
[1756931338229,3.82169672,209.45,209.41,6.59000971]
[1756931338430,11.69169672,209.44,209.41,6.59000971]
[1756931338729,7.87,209.44,209.41,6.59000971]
[1756931338924,7.87,209.47,209.41,6.59000971]
[1756931339127,3.82166047,209.46,209.41,6.59000971]
[1756931339325,7.87,209.44,209.41,6.59000971]
[1756931340035,7.87,209.47,209.41,6.59000971]
[1756931340333,7.87,209.45,209.41,0.02000971]
[1756931340530,7.87,209.43,209.41,0.02000971]
[1756931340734,7.87,209.47,209.41,0.02000971]
[1756931340936,7.87,209.45,209.41,0.02000971]
[1756931341233,7.87,209.43,209.41,0.02000971]
[1756931341530,7.87,209.47,209.41,0.02000971]
[1756931341742,7.87,209.45,209.41,0.02000971]
[1756931341940,3.82170843,209.44,209.41,0.02000971]
[1756931342232,7.87,209.47,209.41,0.02000971]
[1756931342435,7.87,209.42,209.41,0.02000971]
[1756931345138,7.87,209.49,209.41,6.59000971]
[1756931345442,74.0,209.5,209.41,6.59000971]
[1756931345443,7.87,209.46,209.41,6.59000971]
[1756931345636,7.87,209.44,209.41,6.59000971]
[1756931345836,116.24,209.47,209.41,6.59000971]
[1756931346031,7.87,209.45,209.41,6.59000971]
[1756931346235,7.87,209.43,209.41,0.02000971]
[1756931346529,7.87,209.46,209.41,0.02000971]
[1756931346736,7.87,209.44,209.41,0.02000971]
[1756931346937,7.87,209.46,209.41,0.02000971]
[1756931347136,7.87,209.44,209.41,0.02000971]
[1756931347336,11.69303302,209.43,209.41,0.02000971]
[1756931347536,7.87,209.46,209.41,0.02000971]
[1756931347736,7.87,209.44,209.41,0.02000971]
[1756931347935,7.87,209.42,209.41,0.02000971]
[1756931348839,11.6938601,209.42,209.41,0.02000971]
[1756931364552,11.53393014,209.42,209.41,0.02000971]
[1756931365251,74.0,209.46,209.41,6.61000971]
[1756931365252,7.88,209.45,209.41,6.61000971]
[1756931365451,7.88,209.43,209.41,6.59]
[1756931369555,74.0,209.46,209.38,6.59]
[1756931369853,3.66495619,209.45,209.38,6.59]
[1756931370052,3.66495619,209.44,209.38,6.59]
[1756931370248,74.0,209.46,209.38,6.59]
[1756931370450,11.54472872,209.45,209.38,6.59]
[1756931370746,3.66472872,209.44,209.38,6.59]
[1756931370947,7.88,209.45,209.38,6.59]
[1756931371146,3.66428882,209.44,209.38,6.59]
[1756931371348,7.88,209.45,209.38,6.59]
[1756931371548,3.66444353,209.44,209.38,6.59]
[1756931371748,7.88,209.45,209.38,6.59]
[1756931371951,3.66429441,209.44,209.38,6.59]
[1756931372154,7.88,209.45,209.38,6.59]
[1756931372352,7.88,209.45,209.38,5.2969456]
[1756931372552,7.88,209.45,209.39,6.59]
[1756931381569,7.88,209.47,209.41,2.00529595]
[1756931381861,3.66361634,209.46,209.41,8.57529595]
[1756931382068,7.49,209.47,209.41,8.57529595]
[1756931382367,3.66372995,209.46,209.41,8.57529595]
[1756931382568,7.49,209.47,209.41,8.57529595]
[1756931382769,7.49,209.45,209.41,8.57529595]
[1756931383073,7.49,209.47,209.41,8.57529595]
[1756931383267,3.66397309,209.46,209.41,8.57529595]
[1756931383570,7.49,209.47,209.41,8.57529595]
[1756931383769,7.49,209.45,209.41,8.57529595]
[1756931383971,7.49,209.47,209.41,8.57529595]
[1756931384172,7.49,209.45,209.41,8.57529595]
[1756931384368,7.49,209.47,209.41,8.57529595]
[1756931384565,3.66420534,209.46,209.41,8.57529595]
[1756931384764,7.49,209.47,209.41,8.57529595]
[1756931384970,7.49,209.45,209.41,8.57529595]
[1756931385165,7.49,209.47,209.41,8.57529595]
[1756931385465,3.66417798,209.46,209.42,6.57]
[1756931385664,7.49,209.47,209.42,6.57]
[1756931385868,7.49,209.45,209.42,6.57]
[1756931386065,2.00529595,209.48,209.42,6.57]
[1756931386263,11.1541572,209.47,209.42,6.57]
[1756931386471,3.6641572,209.46,209.42,6.57]
[1756931386671,7.49,209.47,209.42,6.57]
[1756931386872,3.66409354,209.46,209.42,6.57]
[1756931387171,7.49,209.47,209.42,6.57]
[1756931387364,7.49,209.45,209.42,6.57]
[1756931387566,7.49,209.47,209.42,6.57]
[1756931387764,7.49,209.45,209.42,6.57]
[1756931387971,2.00529595,209.48,209.42,6.57]
[1756931388170,7.49,209.46,209.42,6.57]
[1756931388375,7.49,209.47,209.42,6.57]
[1756931388565,3.66388952,209.46,209.42,6.57]
[1756931388874,7.49,209.47,209.42,6.57]
[1756931389174,3.66388952,209.46,209.42,6.57]
[1756931389365,7.49,209.45,209.42,6.57]
[1756931389569,2.00529595,209.48,209.42,6.57]
[1756931389772,3.66379332,209.47,209.42,6.57]
[1756931390076,7.49,209.45,209.42,6.57]
[1756931390275,2.00529595,209.48,209.42,6.57]
[1756931390572,7.49,209.46,209.42,6.57]
[1756931390768,2.00529595,209.48,209.42,6.57]
[1756931390968,7.49,209.46,209.42,6.57]
[1756931391173,7.49,209.47,209.42,6.57]
[1756931391368,7.49,209.45,209.42,6.57]
[1756931391766,7.49,209.47,209.42,6.57]
[1756931391967,7.49,209.45,209.42,6.57]
[1756931392173,7.49,209.47,209.42,6.57]
[1756931392374,3.66358822,209.46,209.42,6.57]
[1756931392575,7.49,209.47,209.42,6.57]
[1756931392777,7.49,209.45,209.42,6.57]
[1756931394174,7.49,209.45,209.42,6.59000876]
[1756931395273,2.00529595,209.48,209.42,6.59000876]
[1756931395473,7.49,209.46,209.42,6.59000876]
[1756931395675,7.49,209.47,209.42,6.59000876]
[1756931395977,3.66906839,209.46,209.42,6.59000876]
[1756931396178,2.00529595,209.48,209.42,6.59000876]
[1756931396379,7.49,209.46,209.42,6.59000876]
[1756931396581,2.00529595,209.48,209.42,6.59000876]
[1756931396780,3.66912922,209.47,209.42,6.59000876]
[1756931396979,7.49,209.45,209.42,6.59000876]
[1756931397480,2.00529595,209.48,209.42,6.59000876]
[1756931397481,2.00529595,209.48,209.42,0.02000876]
[1756931397681,11.15934721,209.47,209.43,6.59]
[1756931397881,7.49,209.45,209.43,6.61000876]
[1756931398377,7.49,209.45,209.43,0.02000876]
[1756931398575,7.49,209.45,209.43,6.61000876]
[1756931398778,7.49,209.47,209.44,6.59]
[1756931398982,11.15945876,209.46,209.44,6.61000876]
[1756931399185,7.49,209.46,209.44,6.61000876]
[1756931400281,7.49,209.5,209.44,6.61000876]
[1756931400477,7.49,209.48,209.44,6.61000876]
[1756931400677,11.1584383,209.47,209.44,6.61000876]
[1756931400881,7.49,209.5,209.44,6.61000876]
[1756931401183,7.49,209.48,209.44,6.61000876]
[1756931401481,7.49,209.46,209.44,6.61000876]
[1756931402281,81.49,209.51,209.45,6.59]
[1756931402583,7.49,209.49,209.46,6.59]
[1756931402784,11.16101944,209.48,209.46,6.61000876]
[1756931402978,7.49,209.5,209.46,0.02000876]
[1756931403174,3.6708937,209.49,209.46,0.02000876]
[1756931403376,7.49,209.47,209.46,0.02000876]
[1756931409190,11.16213191,209.47,209.46,0.02000876]
[1756931409390,7.49,209.47,209.46,0.02000876]
[1756931409585,11.1619269,209.47,209.46,0.02000876]
[1756931413094,11.16148339,209.47,209.46,0.02000876]
[1756931416294,7.49,209.47,209.46,0.02000876]
[1756931416790,11.16135445,209.47,209.46,0.02000876]
[1756931416996,7.49,209.47,209.46,0.02000876]
[1756931417290,7.87,209.54,209.47,6.6]
[1756931417590,7.87,209.54,209.48,2.00529595]
[1756931417786,7.87,209.54,209.48,2.02530471]
[1756931418498,7.87,209.52,209.49,6.6]
[1756931418696,7.87,209.52,209.5,6.6]
[1756931418897,7.87,209.52,209.5,6.62000876]
[1756931420095,7.87,209.52,209.5,8.62530471]
[1756931422098,79.32245535,209.62,209.5,8.62530471]
[1756931422099,7.87,209.61,209.51,6.6]
[1756931422301,7.87,209.61,209.55,8.60529595]